lending/lending_fUSD_20260206
["ID","MTS","AMOUNT","RATE_DAILY","PERIOD"]
[404649462,1770379615772,-5000.01,0.00010676,2]
[404649463,1770379615881,-5000.01,0.00010676,2]
[404649464,1770379616023,-5000.01,0.00010676,2]
[404649465,1770379616152,-5000.01,0.00010676,2]
[404649466,1770379616267,-5000.01,0.00010676,2]
[404649467,1770379616408,-5000.01,0.00010676,2]
[404649468,1770379616522,-5000.01,0.00010676,2]
[404649469,1770379616705,3006.338547,0.00010576,2]
[404649470,1770379621396,300.0,0.00010675,2]
[404649474,1770379638012,181.43952062,0.00010576,2]
[404649477,1770379668900,2181.524889,0.00010622,2]
[404649481,1770379708946,210.07868958,0.00010576,2]
[404649482,1770379713872,151.0,0.00010673,2]
[404649484,1770379715338,160.0,0.00035616,120]
[404649485,1770379715368,150.0,0.00010648,2]
[404649486,1770379716014,150.0,0.00010648,2]
[404649487,1770379727425,5000.0,0.00044089,52]
[404649488,1770379733183,209.50933815,0.00010675,2]
[404649489,1770379733863,1044.12583384,0.00010675,2]
[404649490,1770379739353,1044.12583384,0.00010675,2]
[404649491,1770379739699,1044.12583384,0.00010675,2]
[404649492,1770379741776,150.0,0.00010675,2]
[404649494,1770379769142,-2982.28576499,0.00010676,2]
[404649496,1770379779978,5000.0,0.00044089,54]
[404649497,1770379781191,300.0,0.00010675,2]
[404649501,1770379791408,10000.0,0.00035616,120]
[404649502,1770379801235,1200.0,0.00010675,2]
[404649504,1770379805527,8323.0,0.00035616,120]
[404649505,1770379821693,5000.0,0.00044089,56]
[404649506,1770379831569,5075.21,0.00035616,120]
[404649509,1770379832134,-1957.15258626,0.00010676,2]
[404649510,1770379832189,-1377.69079332,0.00010676,2]
[404649511,1770379832201,-262.95038187,0.00010676,2]
[404649512,1770379832214,-570317.69402443,0.00010676,2]
[404649513,1770379832226,-10685.99194872,0.00010676,2]
[404649514,1770379832237,-49479.51996124,0.00010676,2]
[404649515,1770379832248,-8947.77606502,0.00010676,2]
[404649516,1770379832259,-322.59321388,0.00010676,2]
[404649517,1770379832271,-3328.1,0.00010676,2]
[404649518,1770379832282,-17603.99911983,0.00010676,2]
[404649519,1770379832294,-11215.31893508,0.00010676,2]
[404649520,1770379832309,-1403.3982886,0.00010676,2]
[404649521,1770379832320,-260.03248731,0.00010676,2]
[404649522,1770379832331,-394.22022497,0.00010676,2]
[404649523,1770379832358,-87427.2841986,0.00010676,2]
[404649524,1770379832369,-88875.1647315,0.00010676,2]
[404649525,1770379832381,-501.01040161,0.00010676,2]
[404649526,1770379832392,-325.314,0.00010676,2]
[404649527,1770379832405,-3334.76220405,0.00010676,2]
[404649538,1770379838277,-390.62,0.00010676,2]
[404649539,1770379838289,-966.55,0.00010676,2]
[404649540,1770379838333,-305.96311241,0.00010676,2]
[404649546,1770379840296,-969.84098008,0.00010676,2]
[404649547,1770379840307,-333.49793424,0.00010676,2]
[404649548,1770379840457,-2106.42828958,0.00010676,2]
[404649549,1770379840513,-725.91164319,0.00010676,2]
[404649550,1770379840570,-3332.4,0.00010676,2]
[404649551,1770379840581,-2462548.5656922,0.00010676,2]
[404649552,1770379840592,-1000.0,0.00010676,2]
[404649553,1770379840601,-2500.0,0.00010676,2]
[404649554,1770379840611,-988598.645,0.00010676,2]
[404649555,1770379840620,-300.0,0.00010689,2]
[404649556,1770379840630,-150.0,0.00010703,2]
[404649557,1770379840640,-205.41268526,0.0001075,2]
[404649558,1770379840649,-500.0,0.0001075,2]
[404649559,1770379840865,-150.0,0.00010758,2]
[404649560,1770379840875,-9700.0,0.00010766,2]
[404649561,1770379840884,-151.0,0.00010769,2]
[404649562,1770379840894,-151.0,0.00010769,2]
[404649563,1770379840903,-151.0,0.00010769,2]
[404649564,1770379840913,-151.0,0.00010769,2]
[404649565,1770379840922,-151.0,0.00010769,2]
[404649566,1770379840932,-151.0,0.00010769,2]
[404649567,1770379840941,-151.0,0.00010769,2]
[404649568,1770379840950,-151.0,0.00010769,2]
[404649569,1770379840960,-151.0,0.00010769,2]
[404649570,1770379840970,-151.0,0.00010769,2]
[404649571,1770379840979,-151.0,0.00010769,2]
[404649572,1770379840989,-151.0,0.00010769,2]
[404649573,1770379841009,-151.0,0.00010769,2]
[404649574,1770379841019,-151.0,0.00010769,2]
[404649575,1770379841028,-151.0,0.00010769,2]
[404649576,1770379841039,-151.0,0.00010769,2]
[404649577,1770379841048,-151.0,0.00010769,2]
[404649578,1770379841058,-151.0,0.00010769,2]
[404649579,1770379841068,-151.0,0.00010769,2]
[404649580,1770379841077,-151.0,0.00010769,2]
[404649581,1770379841088,-207.03329688,0.00010812,2]
[404649582,1770379841097,-1682.65839331,0.000109,2]
[404649583,1770379841107,-166.66,0.00010959,2]
[404649584,1770379841117,-500.0,0.00011,2]
[404649585,1770379841127,-1653.76,0.00011021,2]
[404649586,1770379841137,-166.66,0.00011068,2]
[404649587,1770379841147,-23262.02162514,0.00011099,2]
[404649588,1770379841157,-166.66,0.00011178,2]
[404649589,1770379841167,-166.66,0.00011288,2]
[404649590,1770379841176,-500.0,0.00011355,2]
[404649591,1770379841186,-166.66,0.00011397,2]
[404649592,1770379841195,-166.66,0.00011507,2]
[404649593,1770379841205,-255.0,0.0001171,2]
[404649594,1770379841216,-420.0,0.00011734,2]
[404649595,1770379841226,-1680.0,0.00011742,2]
[404649596,1770379841236,-250.0,0.00011743,2]
[404649597,1770379841246,-250.0,0.00011743,2]
[404649598,1770379841255,-250.0,0.00011743,2]
[404649599,1770379841265,-300.0,0.00011743,2]
[404649600,1770379841275,-241.00287784,0.00011823,2]
[404649601,1770379841285,-500.0,0.00011823,2]
[404649602,1770379841294,-500.0,0.00011846,2]
[404649603,1770379841305,-248.86,0.00011923,2]
[404649604,1770379841315,-248.86,0.00011945,2]
[404649605,1770379841327,-248.86,0.00011967,2]
[404649606,1770379841337,-248.86,0.00011989,2]
[404649607,1770379841347,-248.86,0.00012011,2]
[404649608,1770379841360,-248.86,0.00012033,2]
[404649609,1770379841371,-248.86,0.00012055,2]
[404649610,1770379841381,-248.86,0.00012077,2]
[404649611,1770379841391,-999.99,0.00012087,2]
[404649612,1770379841401,-7202.12,0.00012087,2]
[404649613,1770379841411,-299.99,0.00012087,2]
[404649614,1770379841421,-9999.99,0.00012087,2]
[404649615,1770379841430,-150.99,0.00012087,2]
[404649616,1770379841440,-248.86,0.00012099,2]
[404649617,1770379841450,-500.0,0.0001212,2]
[404649618,1770379841460,-248.86,0.00012121,2]
[404649619,1770379841470,-248.86,0.00012143,2]
[404649620,1770379841479,-12507.46107049,0.00012144,2]
[404649621,1770379841490,-248.86,0.00012165,2]
[404649622,1770379841500,-248.86,0.00012187,2]
[404649623,1770379841509,-248.86,0.00012209,2]
[404649624,1770379841519,-248.86,0.00012231,2]
[404649625,1770379841529,-248.86,0.00012253,2]
[404649626,1770379841539,-248.86,0.00012275,2]
[404649627,1770379841552,-248.86,0.00012297,2]
[404649628,1770379841562,-248.86,0.00012319,2]
[404649629,1770379841572,-248.86,0.00012341,2]
[404649630,1770379841582,-500.0,0.00012394,2]
[404649631,1770379841592,-433.0,0.00012842,2]
[404649632,1770379841602,-213.0,0.00012899,2]
[404649633,1770379841612,-2351.0,0.00012917,2]
[404649634,1770379841622,-5500.76,0.000137,2]
[404649635,1770379841632,-5500.76,0.000137,2]
[404649636,1770379841642,-2907.0,0.00014208,2]
[404649637,1770379841652,-66895.62,0.00014246,2]
[404649638,1770379841662,-200.0,0.00014279,2]
[404649639,1770379841672,-23262.0216251,0.00014289,2]
[404649640,1770379841682,-151.0,0.00014624,2]
[404649641,1770379841692,-250.0,0.00015,2]
[404649642,1770379841702,-1191.31,0.00015329,2]
[404649643,1770379841715,-1682.65839324,0.00015349,2]
[404649644,1770379841726,-150.0,0.00015876,2]
[404649645,1770379841736,-500.0,0.00016473,2]
[404649646,1770379841750,-500.0,0.00016473,2]
[404649647,1770379841760,-1000.0,0.00017021,2]
[404649648,1770379841770,-1000.0,0.00017021,2]
[404649649,1770379841781,-1191.31,0.00017245,2]
[404649650,1770379841793,-1697.75,0.000173,2]
[404649651,1770379841803,-1677.02709544,0.00017406,2]
[404649652,1770379841812,-4584.8,0.00017411,2]
[404649653,1770379841822,-1500.0,0.00017568,2]
[404649654,1770379841832,-1500.0,0.00017568,2]
[404649655,1770379841842,-500.0,0.00017973,2]
[404649656,1770379841852,-501.94112039,0.00017973,2]
[404649657,1770379841862,-500.0,0.00017973,2]
[404649658,1770379841872,-500.0,0.00017973,2]
[404649659,1770379841882,-500.0,0.00017973,2]
[404649660,1770379841892,-160.38138244,0.00017973,2]
[404649661,1770379841902,-276.31975293,0.00017973,2]
[404649662,1770379841912,-500.0,0.00017973,2]
[404649663,1770379841921,-500.0,0.00017973,2]
[404649664,1770379841931,-500.0,0.00017973,2]
[404649665,1770379841944,-265.91534322,0.00017973,2]
[404649666,1770379841954,-500.0,0.00017973,2]
[404649667,1770379841964,-500.0,0.00017973,2]
[404649668,1770379841974,-500.0,0.00017973,2]
[404649669,1770379841983,-500.0,0.00017973,2]
[404649670,1770379841993,-500.0,0.00017973,2]
[404649671,1770379842002,-500.0,0.00017973,2]
[404649672,1770379842012,-500.0,0.00017973,2]
[404649673,1770379842022,-307.65242929,0.00017973,2]
[404649674,1770379842031,-500.0,0.00017973,2]
[404649675,1770379842041,-500.0,0.00017973,2]
[404649676,1770379842051,-500.0,0.00017973,2]
[404649677,1770379842061,-394.85489861,0.00017973,2]
[404649678,1770379842071,-500.0,0.00017973,2]
[404649679,1770379842081,-232.48282443,0.00017973,2]
[404649680,1770379842091,-500.0,0.00017973,2]
[404649681,1770379842101,-161.65464171,0.00017973,2]
[404649682,1770379842111,-500.0,0.00017973,2]
[404649683,1770379842121,-162.09631962,0.00017973,2]
[404649684,1770379842131,-500.0,0.00017973,2]
[404649685,1770379842145,-500.0,0.00017973,2]
[404649686,1770379842155,-614.17494655,0.00017973,2]
[404649687,1770379842164,-500.0,0.00017973,2]
[404649688,1770379842174,-500.0,0.00017973,2]
[404649689,1770379842184,-500.0,0.00017973,2]
[404649690,1770379842194,-500.0,0.00017973,2]
[404649691,1770379842204,-500.0,0.00017973,2]
[404649692,1770379842214,-500.0,0.00017973,2]
[404649693,1770379842224,-586.89023392,0.00017973,2]
[404649694,1770379842233,-433.53666957,0.00017973,2]
[404649695,1770379842243,-500.0,0.00017973,2]
[404649696,1770379842253,-500.0,0.00017973,2]
[404649697,1770379842262,-500.0,0.00017973,2]
[404649698,1770379842271,-500.0,0.00017973,2]
[404649699,1770379842281,-182.684782,0.00017973,2]
[404649700,1770379842291,-500.0,0.00017973,2]
[404649701,1770379842300,-500.0,0.00017973,2]
[404649702,1770379842309,-500.0,0.00017973,2]
[404649703,1770379842319,-333.90054396,0.00017973,2]
[404649704,1770379842328,-500.0,0.00017973,2]
[404649705,1770379842340,-500.0,0.00017973,2]
[404649706,1770379842350,-208.57318794,0.00017973,2]
[404649707,1770379842359,-500.0,0.00017973,2]
[404649708,1770379842369,-500.0,0.00017973,2]
[404649709,1770379842379,-500.0,0.00017973,2]
[404649710,1770379842388,-500.8383319,0.00017973,2]
[404649711,1770379842398,-393.28026372,0.00017973,2]
[404649712,1770379842407,-500.0,0.00017973,2]
[404649713,1770379842417,-500.0,0.00017973,2]
[404649714,1770379842427,-500.93151703,0.00017973,2]
[404649715,1770379842436,-382.63613861,0.00017973,2]
[404649716,1770379842446,-500.0,0.00017973,2]
[404649717,1770379842458,-501.17265493,0.00017973,2]
[404649718,1770379842468,-500.0,0.00017973,2]
[404649719,1770379842478,-500.0,0.00017973,2]
[404649720,1770379842487,-500.0,0.00017973,2]
[404649721,1770379842497,-500.0,0.00017973,2]
[404649722,1770379842507,-500.0,0.00017973,2]
[404649723,1770379842517,-23262.0216251,0.00018001,2]
[404649724,1770379842527,-155.59252251,0.00018008,2]
[404649725,1770379842537,-500.0,0.00018116,2]
[404649726,1770379842547,-500.0,0.00018116,2]
[404649727,1770379842557,-200.0,0.00019082,2]
[404649728,1770379842567,-168.19452748,0.00019095,2]
[404649729,1770379842577,-1191.31,0.00019161,2]
[404649730,1770379842586,-1682.65839324,0.00020123,2]
[404649731,1770379842595,-197.06378942,0.00021,2]
[404649732,1770379842605,-155.59252251,0.0002101,2]
[404649733,1770379842616,-1191.31,0.00021077,2]
[404649734,1770379842625,-23262.0216251,0.00021714,2]
[404649735,1770379842634,-5000.0,0.00021918,2]
[404649736,1770379842644,-332.81,0.000229,7]
[404649737,1770379842654,-1191.31,0.00022993,2]
[404649738,1770379842664,-6582.0,0.00022995,2]
[404649739,1770379842673,-150.0,0.00022999,2]
[404649740,1770379842683,-160.0,0.00023,2]
[404649741,1770379842693,-183.03,0.00023632,2]
[404649742,1770379842704,-1677.02709544,0.00023859,2]
[404649743,1770379842716,-155.59252251,0.00024011,2]
[404649744,1770379842739,-183.03,0.0002434,2]
[404649745,1770379842748,-190.4,0.00024658,2]
[404649746,1770379842759,-1682.65839324,0.00024896,2]
[404649747,1770379842769,-183.03,0.00025071,2]
[404649748,1770379842780,-23262.0216251,0.00025426,2]
[404649749,1770379842792,-150.0,0.00025435,30]
[404649750,1770379842804,-153.044089,0.00025435,30]
[404649751,1770379842814,-156.088178,0.00025435,30]
[404649752,1770379842824,-159.132267,0.00025435,30]
[404649753,1770379842834,-162.176356,0.00025435,30]
[404649754,1770379842845,-165.220445,0.00025435,30]
[404649755,1770379842854,-168.264535,0.00025435,30]
[404649756,1770379842864,-171.308624,0.00025435,30]
[404649757,1770379842874,-174.352713,0.00025435,30]
[404649758,1770379842884,-177.396802,0.00025435,30]
[404649759,1770379842894,-3483.0,0.00025924,2]
[404649760,1770379842904,-1335.0,0.00025924,2]
[404649761,1770379842919,-6582.0,0.00025995,2]
[404649762,1770379842930,-155.59252251,0.00027012,2]
[404649763,1770379842941,-1677.02709544,0.00027085,2]
[404649764,1770379842951,-186.388441,0.00027346,2]
[404649765,1770379842962,-150.0,0.00027369,2]
[404649766,1770379842971,-168.19452748,0.00027393,2]
[404649767,1770379842981,-190.4,0.00027397,2]
[404649768,1770379842991,-151.0,0.00028696,7]
[404649770,1770379843002,-3483.0,0.00028924,2]
[404649771,1770379843013,-6582.0,0.00028995,2]
[404649772,1770379843023,-23262.0216251,0.00029139,2]
[404649773,1770379843032,-300.0,0.00029223,2]
[404649774,1770379843042,-9888.93,0.00029602,2]
[404649776,1770379843051,-1682.65839324,0.00029669,2]
[404649777,1770379843062,-150.0,0.0002999,2]
[404649778,1770379843071,-1364.153343,0.0003006,30]
[404649779,1770379843080,-190.4,0.00030137,2]
[404649780,1770379843090,-150.0,0.00030999,2]
[404649781,1770379843102,-3478.0,0.00031924,2]
[404649782,1770379843112,-6582.0,0.00031995,2]
[404649783,1770379843121,-150.0,0.00031999,2]
[404649784,1770379843130,-300.0,0.0003285,10]
[404649785,1770379843140,-23262.0216251,0.00032851,2]
[404649786,1770379843149,-190.4,0.00032877,2]
[404649787,1770379843158,-27342.6,0.000329,14]
[404649788,1770379843167,-157.4,0.00033,14]
[404649789,1770379843177,-332.81,0.00033,14]
[404649790,1770379843186,-320.69,0.000333,14]
[404649791,1770379843195,-1436.42,0.000333,2]
[404649792,1770379843205,-5534.86,0.00033398,2]
[404649793,1770379843217,-1677.02709544,0.00033539,2]
[404649794,1770379843227,-150.0,0.00033999,2]
[404649795,1770379843237,-156.29914378,0.00034,20]
[404649796,1770379843246,-1682.65839324,0.00034442,2]
[404649797,1770379843257,-6582.0,0.00034995,2]
[404649798,1770379843267,-190.4,0.00035616,2]
[404649799,1770379843277,-168.19452748,0.0003569,8]
[404649800,1770379843287,-2076.359,0.00036149,44]
[404649801,1770379843301,-186.439,0.00036149,44]
[404649802,1770379843311,-2000.0,0.000362,2]
[404649803,1770379843321,-23262.0216251,0.00036564,2]
[404649804,1770379843331,-204.69,0.0003664,14]
[404649805,1770379843340,-1677.02709544,0.00036765,2]
[404649806,1770379843351,-27342.6,0.000368,14]
[404649807,1770379843361,-1364.153343,0.00036997,60]
[404649808,1770379843371,-150.0,0.00036999,10]
[404649809,1770379843381,-600.0,0.00037,120]
[404649810,1770379843391,-150.0,0.00037,2]
[404649811,1770379843401,-195.58902898,0.000372,120]
[404649812,1770379843411,-5494.783,0.00037995,2]
[404649813,1770379843421,-150.0,0.00038999,2]
[404649814,1770379843430,-1682.65839324,0.00039216,2]
[404649815,1770379843440,-1000.0,0.00039438,14]
[404649816,1770379843449,-157.4,0.000395,14]
[404649817,1770379843459,-1555.09520892,0.00039672,2]
[404649818,1770379843470,-377.31136206,0.00039672,2]
[404649819,1770379843480,-5800.0,0.000397,14]
[404649820,1770379843489,-253.61853036,0.00039708,7]
[404649821,1770379843502,-225.82182579,0.00039708,7]
[404649822,1770379843512,-219.94196114,0.00039708,7]
[404649823,1770379843521,-241.68477112,0.00039708,7]
[404649824,1770379843532,-157.415289,0.00039708,90]
[404649825,1770379843542,-157.415289,0.00039708,90]
[404649826,1770379843551,-157.415289,0.00039708,90]
[404649827,1770379843561,-157.415289,0.00039708,90]
[404649828,1770379843571,-5800.0,0.00039709,14]
[404649829,1770379843580,-5800.0,0.00039718,14]
[404649830,1770379843590,-5800.0,0.00039726,14]
[404649831,1770379843600,-151.0,0.00039726,120]
[404649832,1770379843609,-188.802777,0.00039726,120]
[404649833,1770379843619,-341.96,0.00039726,120]
[404649834,1770379843628,-341.96,0.00039726,120]
[404649835,1770379843638,-341.96,0.00039726,120]
[404649836,1770379843648,-1895.332551,0.00039726,120]
[404649837,1770379843657,-341.96,0.00039726,120]
[404649838,1770379843667,-1895.332551,0.00039726,120]
[404649839,1770379843680,-1895.332551,0.00039726,120]
[404649840,1770379843690,-1895.332551,0.00039726,120]
[404649841,1770379843703,-151.0,0.00039726,120]
[404649842,1770379843714,-2000.0,0.000399,2]
[404649843,1770379843727,-1677.02709544,0.00039992,2]
[404649844,1770379843737,-5184.86493272,0.0004,8]
[404649845,1770379843746,-286.0095686,0.00040276,26]
[404649846,1770379843757,-23262.0216251,0.00040276,15]
[404649847,1770379843766,-839.0,0.0004028,11]
[404649848,1770379843777,-25693.4614027,0.000404,2]
[404649899,1770379847193,5075.0,0.00035616,120]
[404649911,1770379847615,-526.59390598,0.00010952,2]
[404649917,1770379851255,1648.13,0.00035616,120]
[404649918,1770379852677,5888.0,0.00035616,120]
[404649919,1770379856496,5888.0,0.00035616,120]
[404649920,1770379859837,5515.0,0.00035616,120]
[404649921,1770379867689,500.0,0.00044089,30]
[404649922,1770379868315,500.0,0.00044089,30]
[404649923,1770379868989,500.0,0.00044089,30]
[404649924,1770379869628,500.0,0.00044089,30]
[404649925,1770379870279,500.0,0.00044089,30]
[404649926,1770379873541,250.0,0.00044089,30]
[404649927,1770379874180,250.0,0.00044089,30]
[404649928,1770379874809,250.0,0.00044089,30]
[404649929,1770379875433,250.0,0.00044089,30]
[404649930,1770379876094,250.0,0.00044089,30]
[404649931,1770379876766,250.0,0.00044089,30]
[404649932,1770379877394,250.0,0.00044089,30]
[404649933,1770379878060,250.0,0.00044089,30]
[404649934,1770379878709,250.0,0.00044089,30]
[404649935,1770379892647,151.0,0.00044089,30]
[404649936,1770379893323,151.0,0.00044089,30]
[404649937,1770379893935,151.0,0.00044089,30]
[404649938,1770379894545,151.0,0.00044089,30]
[404649939,1770379895140,151.0,0.00044089,30]
[404649940,1770379895747,151.0,0.00044089,30]
[404649941,1770379896363,151.0,0.00044089,30]
[404649942,1770379896979,151.0,0.00044089,30]
[404649943,1770379897623,151.0,0.00044089,30]
[404649944,1770379898358,151.0,0.00044089,30]
[404649945,1770379925811,261.34251269,0.00010675,2]
[404649946,1770379926009,151.0,0.00044089,30]
[404649947,1770379926061,1000.0,0.00044089,30]
[404649948,1770379926621,156.587,0.00044089,30]
[404649949,1770379926719,1000.0,0.00044089,30]
[404649950,1770379927242,162.380719,0.00044089,30]
[404649951,1770379927346,1000.0,0.00044089,30]
[404649952,1770379927722,518.0,0.00044089,120]
[404649953,1770379927912,168.3888056,0.00044089,30]
[404649954,1770379927962,1000.0,0.00044089,30]
[404649955,1770379928157,500.0,0.00044089,30]
[404649956,1770379928431,151.0,0.00044089,30]
[404649957,1770379928562,1000.0,0.00044089,30]
[404649958,1770379928610,168.3888056,0.00044089,30]
[404649959,1770379929039,151.0,0.00044089,30]
[404649960,1770379929191,1000.0,0.00044089,30]
[404649961,1770379929690,151.0,0.00044089,30]
[404649962,1770379929822,1000.0,0.00044089,30]
[404649963,1770379930435,1000.0,0.00044089,30]
[404649964,1770379930475,151.0,0.00044089,30]
[404649965,1770379931036,1000.0,0.00044089,30]
[404649966,1770379931083,151.0,0.00044089,30]
[404649967,1770379931158,300.0,0.00044089,30]
[404649968,1770379931195,1422.73754844,0.00010576,2]
[404649969,1770379931222,10000.01,0.00010576,2]
[404649970,1770379931250,10000.01,0.00010576,2]
[404649971,1770379931278,10000.01,0.00010576,2]
[404649972,1770379931310,10000.01,0.00010576,2]
[404649973,1770379931338,10000.01,0.00010576,2]
[404649974,1770379931366,10000.01,0.00010576,2]
[404649975,1770379931393,10000.01,0.00010576,2]
[404649976,1770379931421,10000.01,0.00010576,2]
[404649977,1770379931448,10000.01,0.00010576,2]
[404649978,1770379931492,200.0,0.00044089,30]
[404649979,1770379931654,1000.0,0.00044089,30]
[404649980,1770379931695,151.0,0.00044089,30]
[404649981,1770379931769,311.1,0.00044089,30]
[404649982,1770379932387,207.4,0.00044089,30]
[404649983,1770379932437,311.1,0.00044089,30]
[404649984,1770379932725,215.0738,0.00044089,30]
[404649985,1770379932928,1000.0,0.00044089,30]
[404649986,1770379933363,223.0315306,0.00044089,30]
[404649987,1770379933975,223.0315306,0.00044089,30]
[404649988,1770379942508,-7818.62527208,0.00010576,2]
[404649989,1770379942738,-10000.01,0.00010576,2]
[404649990,1770379950478,500.0,0.00044089,30]
[404649991,1770379951092,500.0,0.00044089,30]
[404649992,1770379951714,500.0,0.00044089,30]
[404649993,1770379952334,500.0,0.00044089,30]
[404649994,1770379952974,500.0,0.00044089,30]
[404649995,1770379953659,500.0,0.00044089,30]
[404649996,1770379954293,500.0,0.00044089,30]
[404649997,1770379954904,500.0,0.00044089,30]
[404649998,1770379955556,500.0,0.00044089,30]
[404649999,1770379956189,500.0,0.00044089,30]
[404650000,1770379956807,500.0,0.00044089,30]
[404650001,1770379959968,250.0,0.00044089,30]
[404650002,1770379960630,250.0,0.00044089,30]
[404650003,1770379961275,250.0,0.00044089,30]
[404650004,1770379961877,250.0,0.00044089,30]
[404650005,1770379962497,250.0,0.00044089,30]
[404650006,1770379963127,250.0,0.00044089,30]
[404650007,1770379963729,250.0,0.00044089,30]
[404650008,1770379964875,250.0,0.00044089,30]
[404650033,1770380041423,222.92398307,0.00010575,2]
[404650034,1770380041459,182.93975888,0.00010575,2]
[404650035,1770380041503,500.0,0.00010575,2]
[404650036,1770380041559,440.53562664,0.00010575,2]
[404650037,1770380043082,-5000.01,0.00010576,2]
[404650038,1770380043336,-5000.01,0.00010576,2]
[404650039,1770380043491,-5000.01,0.00010576,2]
[404650040,1770380045485,1019.45255883,0.00010575,2]
[404650041,1770380045520,1019.45255883,0.00010575,2]
[404650042,1770380045556,1019.45255883,0.00010575,2]
[404650043,1770380045588,1019.45255883,0.00010575,2]
[404650044,1770380045619,1019.45255883,0.00010575,2]
[404650045,1770380045651,1019.45255883,0.00010575,2]
[404650046,1770380045731,1019.45255883,0.00010575,2]
[404650047,1770380045765,1019.45255883,0.00010575,2]
[404650048,1770380045803,497.99016077,0.00010575,2]
[404650049,1770380045828,521.46239806,0.00010575,2]
[404650050,1770380045863,1019.45255883,0.00010575,2]
[404650051,1770380045896,1019.45255883,0.00010575,2]
[404650052,1770380045929,1019.45255883,0.00010575,2]
[404650053,1770380045960,1019.45255883,0.00010575,2]
[404650054,1770380045992,1019.45255883,0.00010575,2]
[404650055,1770380046029,1019.45255883,0.00010575,2]
[404650056,1770380046074,1019.45255883,0.00010575,2]
[404650057,1770380046107,1019.45255883,0.00010575,2]
[404650058,1770380046143,1019.45255883,0.00010575,2]
[404650059,1770380046181,303.47457247,0.00010575,2]
[404650060,1770380046205,715.97798636,0.00010575,2]
[404650061,1770380046245,1019.45255883,0.00010575,2]
[404650062,1770380046279,1019.45255883,0.00010575,2]
[404650063,1770380046320,1019.45255883,0.00010575,2]
[404650064,1770380046354,1019.45255883,0.00010575,2]
[404650065,1770380046389,1019.45255883,0.00010575,2]
[404650066,1770380046431,1019.45255883,0.00010575,2]
[404650067,1770380046464,1019.45255883,0.00010575,2]
[404650068,1770380046501,1019.45255883,0.00010575,2]
[404650069,1770380046537,1019.45255883,0.00010575,2]
[404650070,1770380046570,108.95898417,0.00010575,2]
[404650071,1770380046594,910.49357466,0.00010575,2]
[404650072,1770380046638,1019.45255883,0.00010575,2]
[404650073,1770380046671,1019.45255883,0.00010575,2]
[404650074,1770380046704,1019.45255883,0.00010575,2]
[404650075,1770380046737,1019.45255883,0.00010575,2]
[404650076,1770380046770,1019.45255883,0.00010575,2]
[404650077,1770380046829,1019.45255883,0.00010575,2]
[404650078,1770380046867,1019.45255883,0.00010575,2]
[404650079,1770380046902,1019.45255883,0.00010575,2]
[404650080,1770380046935,933.8959547,0.00010575,2]
[404650081,1770380046960,85.55660413,0.00010575,2]
[404650082,1770380046999,1019.45255883,0.00010575,2]
[404650083,1770380047036,1019.45255883,0.00010575,2]
[404650084,1770380047073,1019.45255883,0.00010575,2]
[404650085,1770380047107,1019.45255883,0.00010575,2]